Cogmind - Beta 15 @@@ ROGUE MODE // 2025.05.09 @ 19:11:18 Player: Waste Result: Destroyed by D-53 Grenadier with Mini Grenade Launcher Performance ------------- Evolutions (0) 0 Regions Visited (2) 400 Robots Destroyed (17) 85 Value Destroyed (401) 401 Prototype IDs (4) 80 Alien Tech Used (0) 0 Bonus (0) 0 TOTAL SCORE: 966 Bonus ------- None Cogmind --------- Core Integrity 0/250 Matter 269/300 Energy 100/100 System Corruption 0% Temperature Cool (44) Movement Rolling (175) Ox5 Location -10/Mines Parts ------- > --- POWER (1) -------- (None) > --- PROPULSION (2) --- Compact Wheel > --- UTILITY (2) ------ Huge Storage Unit > --- WEAPON (2) ------- Medium Laser Light Assault Rifle > --- INVENTORY (25) --- Light Ion Engine Light Ion Engine Light Ion Engine Light Treads Light Treads Aluminum Leg Aluminum Leg Aluminum Leg Aluminum Leg Aluminum Leg Aluminum Leg Small Storage Unit Large Storage Unit Huge Storage Unit EM Pulse Gun Grenade Launcher Grenade Launcher Peak State ------------ > --- POWER ------------ Light Ion Engine > --- PROPULSION ------- Aluminum Leg Aluminum Leg > --- UTILITY ---------- Improved Heat Sink Huge Storage Unit > --- WEAPON ----------- Particle Gun Light Assault Rifle > --- INVENTORY -------- Light Ion Engine Light Ion Engine Light Treads Light Treads Aluminum Leg Compact Wheel Compact Wheel Small Storage Unit Large Storage Unit EM Pulse Gun Medium Laser Light Assault Rifle [Rating: 11] Favorites ----------- Power Light Ion Engine Engine Light Ion Engine Propulsion Aluminum Leg Leg Aluminum Leg Wheel Compact Wheel Utility Huge Storage Unit Device Improved Heat Sink Storage Huge Storage Unit Protection Light Armor Plating Weapon Medium Laser Energy Gun Medium Laser Ballistic Gun Light Assault Rifle Launcher Grenade Launcher Build | -11 -10 -10 ------- Run | Yrd Mat Min Slots Evolved . | . . . Power . | . . . Propulsion . | . . . Utility . | . . . Weapon . | . . . Parts Attached 24 | 1 20 3 Power 2 | . 2 . Engine 2 | . 2 . Core . | . . . Reactor . | . . . Propulsion 9 | . 7 2 Treads . | . . . Leg 7 | . 7 . Wheel 2 | . . 2 Hover . | . . . Flight . | . . . Utility 7 | . 7 . Device 3 | . 3 . Storage 3 | . 3 . Processor . | . . . Hackware . | . . . Protection 1 | . 1 . Artifact . | . . . Weapon 6 | 1 4 1 Energy Gun 2 | 1 1 . Energy Cannon . | . . . Ballistic Gun 2 | . 1 1 Ballistic Cannon . | . . . Launcher 2 | . 2 . Special Weapon . | . . . Impact Weapon . | . . . Slashing Weapon . | . . . Piercing Weapon . | . . . Special Melee Weapon . | . . . Unidentified Prototypes . | . . . Parts Lost 7 | . 3 4 Power 1 | . . 1 Propulsion 1 | . . 1 Utility 2 | . 1 1 Weapon 3 | . 2 1 Highest Loss Streak 4 | . 2 4 To Critical Strikes . | . . . Average Backups 14 | 6 13 19 Power 2 | 1 2 3 Propulsion 7 | 4 6 9 Utility 2 | . 2 3 Weapon 2 | 1 2 4 Tool/Special . | . . . Unused Backups 6 | . 1 5 Power 1 | . . 1 Propulsion 2 | . 1 1 Utility 2 | . . 2 Weapon 1 | . . 1 Tool/Special . | . . . Average Slot Usage (%) 96 | . 95 98 Engine 14 | . 14 14 Leg 27 | . 28 23 Device 6 | . 7 . Storage 14 | . 14 14 Protection 3 | . 2 13 Energy Gun 21 | . 23 . Ballistic Gun 3 | . 4 . Launcher 2 | . . 26 Peak Build Rating 11 | 6 11 9 Average Rating 8 | 6 8 8 On Entrance 7 | 6 6 9 Naked Turns . | . . . Heaviest Build 92 | 12 92 92 Greatest Support 32 | 20 20 32 Greatest Overweight (x) 8 | . 8 4 Average Overweight (x) 3 | . 3 3 Largest Inventory Capacity 25 | 8 25 25 Average Capacity 24 | 8 24 25 Most Carried 20 | 6 20 20 Average Carried 14 | 6 13 19 Final Capacity 25 | 8 25 25 Final Carried 20 | 6 20 17 Class Distribution -------------------- 56% | Scavenger-Mutant 43% | Mutant Dominant Class ---------------- Scavenger-Mutant | -10/Materials Mutant | -10/Mines Resources | -11 -10 -10 ----------- Run | Yrd Mat Min Matter Collected 488 | 194 274 20 Remotely . | . . . Salvage Created 595 | . 595 . Parts 31 | . 31 . Haulers Intercepted . | . . . Recyclers Shooed 1 | . 1 . Parts Field Recycled . | . . . Retrieved Matter . | . . . Parts Self-Destructed . | . . . Prevented . | . . . Kills | -11 -10 -10 ------- Run | Yrd Mat Min Combat Hostiles Destroyed 15 | . 15 . Guns 14 | . 14 . Classes Destroyed 4 | . 4 . Recycler 1 | . 1 . Watcher 1 | . 1 . Swarmer 6 | . 6 . Grunt 9 | . 9 . Best Kill Streak 3 | . 3 . Combat Bots Only 3 | . 3 . Max Kills in Single Turn 1 | . 1 . Gunslinging . | . . . Exploded . | . . . Melee . | . . . Uniques/NPCs Destroyed . | . . . Combat | -11 -10 -10 -------- Run | Yrd Mat Min Hostile Shots Fired 99 | . 89 10 Missed 24 | . 23 1 Hits 75 | . 66 9 Projectile 75 | . 66 9 AOE 8 | . . 8 Damage Taken 1022 | . 670 352 Core 255 | . 121 134 Absorbed by Shields . | . . . Core Remaining (%) 100 | 100 . . Volleys Fired 58 | . 56 2 Largest 2 | . 2 2 Hottest 115 | . 115 115 Shots Fired 112 | . 108 4 Gun 112 | . 108 4 Cannon . | . . . Launcher . | . . . Special . | . . . Kinetic 26 | . 25 1 Thermal 86 | . 83 3 Explosive . | . . . Electromagnetic . | . . . Robot Hit Streak 10 | . 10 3 Robot Miss Streak 4 | . 4 1 Penetration Max . | . . . Secondary Targets 2 | . 2 . Max Gunslinging Chain 1 | . 1 . Shots Hit Robots 73 | . 70 3 Core Hits 28 | . 28 . Critical Kills . | . . . Critical Parts Destroyed . | . . . Critical Strikes 5 | . 4 1 Burn 5 | . 4 1 Melee Attacks . | . . . Impact . | . . . Slashing . | . . . Piercing . | . . . Sneak Attacks . | . . . Combat Hostiles . | . . . Follow-up Attacks . | . . . Damage Inflicted 948 | . 913 35 Guns 935 | . 900 35 Cannons . | . . . Explosions . | . . . Melee . | . . . Ramming 13 | . 13 . Kinetic 161 | . 153 8 Thermal 774 | . 747 27 Explosive . | . . . Electromagnetic . | . . . Impact . | . . . Slashing . | . . . Piercing . | . . . Highest Corruption . | . . . Average Corruption . | . . . Corruption Purged . | . . . Corruption Blocked . | . . . Overload Shots . | . . . Overflow Damage . | . . . Projectiles . | . . . Explosions . | . . . Melee . | . . . Knockbacks . | . . . Impact . | . . . Kinetic . | . . . Secondary . | . . . Self-Inflicted Damage . | . . . Shots . | . . . Rammed . | . . . Targets Rammed 3 | . 3 . Kicked 3 | . 3 . Crushed . | . . . Highest Temperature 571 | . 571 64 Average Temperature 157 | . 161 42 Received Heat Transfer 279 | . 279 . Effects 15 | . 15 . Shutdowns 3 | . 3 . Energy Bleed 2 | . 2 . Matter Decay 2 | . 2 . Short Circuit 1 | . 1 . Damage (major) 7 | . 7 . Siege Activations . | . . . Martial Activations . | . . . Shielding Activations . | . . . Robots Disrupted . | . . . Combat Hostiles . | . . . Robots Corrupted . | . . . Combat Hostiles . | . . . Parts Fried . | . . . Impact Corruptions . | . . . Robots Melted 1 | . 1 . Combat Hostiles 1 | . 1 . Parts Melted 3 | . 3 . Heat Transferred 2442 | . 2294 148 Parts Sabotaged . | . . . Parts Stolen . | . . . Parts Stripped . | . . . Power Chain Reactions . | . . . Alert | -11 -10 -10 ------- Run | Yrd Mat Min Maximum Alert Level . | . . . Low Security (%) 100 | 100 100 100 Level 1 . | . . . Level 2 . | . . . Level 3 . | . . . Level 4 . | . . . Level 5 . | . . . High Security . | . . . Max Security . | . . . Peak Influence 88 | . 88 . Initial . | . . . Average 20 | . 22 . Influence Increases 384 | . 384 . Destroy 0b10 Robot/C 300 | . 300 . Destroy 0b10 Robot/NC 10 | . 10 . Destroy Leader 62 | . 62 . Successful Hack 12 | . 12 . Influence Decreases 384 | . 384 . Time Decay 374 | . 374 . Lost Part 10 | . 10 . Squads Dispatched 3 | . 3 . Investigation 1 | . 1 . Extermination . | . . . Reinforcement 2 | . 2 . Assault . | . . . Garrison . | . . . Intercept . | . . . Searches Triggered . | . . . Construction Impeded . | . . . Haulers Reinforced . | . . . Active Scanning Responses . | . . . Cargo Convoy Interrupts . | . . . Stealth | -11 -10 -10 --------- Run | Yrd Mat Min Distress Signals 3 | . 2 1 Communications Jammed . | . . . Distress Signals . | . . . Times Spotted 32 | . 30 2 Peak Tracking Total 4 | . 4 1 Tactical Retreats . | . . . Traps | -11 -10 -10 ------- Run | Yrd Mat Min Traps Triggered . | . . . Indirectly . | . . . Trap Hack Attempts . | . . . Triggered . | . . . Disarmed . | . . . Reprogrammed . | . . . Reused . | . . . Traps Extracted . | . . . Installed . | . . . Triggered . | . . . Machines | -11 -10 -10 ---------- Run | Yrd Mat Min Machines Disabled . | . . . Max in Single Turn . | . . . Machines Repaired . | . . . Machines Dismantled . | . . . Machines Sabotaged . | . . . Overloaded Fab Kills . | . . . Hacking | -11 -10 -10 --------- Run | Yrd Mat Min Machines Accessed 4 | . 4 . Terminals 4 | . 4 . Fabricators . | . . . Repair Stations . | . . . Recycling Units . | . . . Scanalyzers . | . . . Garrison Access . | . . . Total Hacks 12 | . 12 . Successful 4 | . 4 . Failed 7 | . 7 . Catastrophic 1 | . 1 . Database Lockouts 1 | . 1 . Manual 13 | . 13 . Terminals 12 | . 12 . Fabricators . | . . . Repair Stations . | . . . Recycling Units . | . . . Scanalyzers . | . . . Garrison Access . | . . . Terminal Hacks 4 | . 4 . Robot Analysis 2 | . 2 . Prototype ID Bank 2 | . 2 . Fabricator Hacks . | . . . Repair Station Hacks . | . . . Recycling Unit Hacks . | . . . Scanalyzer . | . . . Garrison Access Hacks . | . . . Unauthorized Hacks . | . . . Terminals . | . . . Fabricators . | . . . Repair Stations . | . . . Recycling Units . | . . . Scanalyzers . | . . . Garrison Access . | . . . Data Cores Recovered . | . . . Used . | . . . Hacking Detections 3 | . 3 . Full Trace Events 1 | . 1 . Feedback Events . | . . . Feedback Blocked . | . . . Robot Schematics Acquired . | . . . Robots Built . | . . . Authchips . | . . . Time . | . . . Total Robot Build Rating . | . . . Part Schematics Acquired . | . . . Parts Built . | . . . Authchips . | . . . Time . | . . . Total Part Build Rating . | . . . Parts Repaired . | . . . Time . | . . . Parts Recycled . | . . . Recycled Matter . | . . . Retrieved Matter . | . . . Retrieved Components . | . . . Parts Scanalyzed . | . . . Part Schematics Acquired . | . . . Parts Damaged . | . . . Bothacking | -11 -10 -10 ------------ Run | Yrd Mat Min Used RIF Installer . | . . . Robots Hacked . | . . . Non-combat . | . . . Combat . | . . . Robot Hacks Applied . | . . . Relay Couplers Released . | . . . Fabnet Peak Effective % . | . . . Robots Rewired . | . . . Allies Hacked . | . . . Hacks Repelled . | . . . Allies | -11 -10 -10 -------- Run | Yrd Mat Min Total Allies . | . . . Largest Group . | . . . Highest-Rated Group . | . . . Highest-Rated Ally . | . . . Total Orders . | . . . Ally Attacks . | . . . Total Damage . | . . . Kills . | . . . Allies Corrupted . | . . . Allies Melted . | . . . Intel | -11 -10 -10 ------- Run | Yrd Mat Min Active Infowar (turns) 251 | . 251 . Terrain 251 | . 251 . Robot Analysis Total 2 | . 2 . Derelict Logs Recovered . | . . . Drone Launches . | . . . Drone Recoveries . | . . . Exploration | -11 -10 -10 ------------- Run | Yrd Mat Min Turns Passed 2082 | 2 1908 172 Spaces Moved 480 | 1 446 33 Core . | . . . Treads . | . . . Legs 464 | 1 446 17 Wheels 16 | . . 16 Hover . | . . . Flight . | . . . Fastest Speed 120 | 120 120 130 Average Speed 371 | 120 379 269 Slowest Speed 680 | 120 680 400 Overloaded Moves . | . . . Propulsion Burnouts . | . . . Robots Hopped . | . . . Potential Cave-ins . | . . . Cave-ins Triggered . | . . . Exploration Rate (%) 29 | 1 77 9 Regions Visited 2 Branch Regions 1 Pre-discovered Areas . | . . . Known Exits Taken . | . . . Unknown Exits Taken 2 | 1 1 . Scrap Searched . | . . . Spaces Dug . | . . . Terrain Destroyed . | . . . Melee . | . . . Projectile . | . . . AOE . | . . . Terrain Rammed . | . . . Walls Destroyed . | . . . Machines Disabled . | . . . Actions | -11 -10 -10 --------- Run | Yrd Mat Min Total 657 | 1 545 111 Wait 81 | . 12 69 Move 478 | . 445 33 Hop . | . . . Pick Up 5 | . 5 . Fast Attach 4 | . 4 . Attach 3 | . 2 1 Detach 1 | . 1 . Swap 20 | 1 15 4 Drop 4 | . 2 2 Fire 58 | . 56 2 Melee . | . . . Ram . | . . . Kick 3 | . 3 . Crush . | . . . Escape Stasis . | . . . Rewire . | . . . Trap . | . . . Miscellaneous . | . . . Route ------- -11/Scrapyard -10/Materials (discovered 5 exits: [*Mat x2] / [*Min x2] / [*Sub]) -10/Mines History --------- Turn | Location | Event 3 | -11/Scrapyard | Discovered new exit (range 0) 3 | -11/Scrapyard | Entered Materials 67 | -10/Materials | Discovered new exit (range 12) 315 | -10/Materials | Build established: Mutant 616 | -10/Materials | Discovered new exit (range 16) 636 | -10/Materials | Discovered new exit (range 10) 1008 | -10/Materials | Discovered new exit (range 12) 1037 | -10/Materials | Build established: Scavenger-Mutant 1444 | -10/Materials | Discovered new exit (range 4) 1598 | -10/Materials | Central database locked down 1911 | -10/Materials | Entered Mines 1921 | -10/Mines | Met a Derelict bent on vengeance 1944 | -10/Mines | Assembled infested the area 2072 | -10/Mines | Core integrity fell below 50% 2082 | -10/Mines | Core integrity fell below 20% 2083 | -10/Mines | Destroyed by D-53 Grenadier with Mini Grenade Launcher Last Messages --------------- 01598_ Connecting with Terminal... 01598_ ALERT: Central database lockdown, local access denied. 01747_ K-01 Serf cleans the Terminal. 01842_ Acquired Grenade Launcher. LOCATION=UNKNOWN GOAL=ESCAPE Something is scanning the area. 01915_ Acquired 20 matter. 01944_ ALERT: Infestation in the mines, dispatching Demolisher response squad. 02048_ Dropped Aluminum Leg. 02071_ as-99581 destroyed. 02075_ Com. Wheel destroyed. 02075_ Lgt. Armor Plating destroyed. 02076_ D-53 Grenadier suffers critical hit (Burn). 02077_ Particle Gun destroyed. 02078_ The unstable cave ceiling collapses. 02081_ R-06 Scavenger destroyed. 02082_ The unstable cave ceiling collapses. 02083_ Lgt. Ion Engine destroyed. Map ----- +----------------------------------------------------+ | ???????????????????????????????????????? | | ???????????????????????????????????????? | | ???????????????????????????????????????? | | ???????????????????????????????????????? | | ???????????????????????????????????????? | | ???????????????????????????????????????? | | ???????????????????????????????????????? | | ???????????????????????????????????????? | | ???????????????????????????????????????? | | ???????????????????????????????????????? | | ???????????????????????????????????????? | | ??????????????????????#????????????????? | | ??????????????????????# ???????????????? | | ??????????????????????# ???????????????? | | ??????????????????????# ???????????????? | | ???????????????????##?# ???????????????? | | ??????????????###### ?# ###????????????? | | ??????????????? ????????????? | | ???????????????? """ ????????????? | | ?????????????????# """ ????????????? | | ??????????????????# """ ##???????????? | | ??????????????????# ###?????????? | | ???????????????????# ##?#####??? | | ???????????????????##%= ## ##?? | | ???????????????????# !d # # # *#?? | | ???????????????????# @ ! #?? | | ???????????????????## # # ! #??? | | ?????? % ##### ##??? | | ??????=! % == ##???? | | ??????#% # #% | ##????? | | ??????# #### ###### ##?????? | | ???????### ????###????####??????? | | ?????????### # ??????????????????????? | | ?????????????# #???????????????????????? | | ?????????????#?????????????????????????? | | ???????????????????????????????????????? | | ???????????????????????????????????????? | | ???????????????????????????????????????? | | ???????????????????????????????????????? | | ???????????????????????????????????????? | | ???????????????????????????????????????? | | ???????????????????????????????????????? | | ???????????????????????????????????????? | | ???????????????????????????????????????? | | ???????????????????????????????????????? | | ???????????????????????????????????????? | | ???????????????????????????????????????? | | ???????????????????????????????????????? | | ???????????????????????????????????????? | | ???????????????????????????????????????? | +----------------------------------------------------+ Best States ------------- Heat Dissipation 39 Energy Generation 10 Energy Capacity 225 Matter Stores 300 Matter Capacity 300 Sight Range 16 Terrain Scan Range 14 Terrain Scan Density 10 Armor Coverage 150 Evasion (%) 55 Item Schematics ----------------- None Robot Schematics ------------------ None Fabricated ------------ Nothing Repaired ---------- Nothing Alien Tech Used ----------------- None Achievements -------------- None Challenges ------------ None Game ------ Seed CommSuperchargedPropulsion Manual? 0 Play Time 00:05:48 Cumulative 346.3 hours Start 2025.05.09 @ 19:06:18 End 2025.05.09 @ 19:11:18 Sessions 1 Manual Loads 0 Difficulty Rogue Special Mode None Game No. 442 Rogue 442 Adventurer 0 Explorer 0 Win Type - Total 26 Types 12/1/7/1/1/1/0/1/1/1 Lore% 85 Gallery% 78 Achievement% 76 Wizard Run 0 Options --------- Layout 0 ASCII 0 Keyboard 0 Movement Numpad Keybinds 0 Fullscreen 1 Font 18/SmallcapsGlow Map View 76x50 Zoom Use 0% Tactical HUD 1 Map Filters NONE Filters NONE Steam 1 RUN: 65b5fa40-ec32-4e81-b30c-45dd1e35f753